Workbook

Sheet Лист1
A1: Школа | C1: МАОУ СОШ № 15 | F1: Согл: | G1: должность | H1: И. о директора
A2: Типовое примерное меню приготавливаемых блюд | G2: фамилия | H2: Шумилова О.В.
A3: Возрастная категория | E3: 7-11 лет | G3: дата | H3: 12 | I3: 1 | J3: 2026
H4: день | I4: месяц | J4: год
A5: Неделя | B5: День недели | C5: Прием пищи | D5: Раздел меню | E5: Блюда | F5: Вес блюда, г | G5: Белки | H5: Жиры | I5: Углеводы | J5: Калорийность | K5: № рецептуры | L5: Цена
A6: 1 | B6: 1 | C6: Завтрак | D6: гор.блюдо | E6: Каша рисовая молочная вязкая с маслом сливочным | F6: 250 | G6: 7.2 | H6: 10 | I6: 50.1 | J6: 321 | K6: 500
D7: гор.напиток | E7: Какао с молоком | F7: 200 | G7: 3.78 | H7: 25.77 | I7: 25.77 | J7: 149.32 | K7: 405
D8: хлеб черн. | E8: Хлеб ржаной | F8: 20 | G8: 1.66 | H8: 0.3 | I8: 9.6 | J8: 54.3 | K8: б/н
D9: закуска | E9: Бутерброд с маслом и сыром | F9: 60 | G9: 7.88 | H9: 9.94 | I9: 20.74 | J9: 207.43 | K9: 800
D13: итого | F13: =SUM(F6:F12) -> 530 | G13: =SUM(G6:G12) -> 20.52 | H13: =SUM(H6:H12) -> 46.01 | I13: =SUM(I6:I12) -> 106.21 | J13: =SUM(J6:J12) -> 732.05
A14: =A6 -> 1 | B14: =B6 -> 1 | C14: Обед | D14: 1 блюдо | E14: Суп картофельный с бобовыми | F14: 200 | G14: 7.08 | H14: 5.41 | I14: 16.52 | J14: 139.7 | K14: 100
D15: 2 блюдо | E15: Омлет натуральный с маслом | F15: 200 | G15: 20.52 | H15: 34.5 | I15: 3.89 | J15: 408.6 | K15: 200
D16: напиток | E16: Чай с лимоном | F16: 200 | G16: 0.16 | H16: 0.01 | I16: 14.92 | J16: 61.56 | K16: 418
D17: хлеб бел. | E17: Хлеб пшеничный | F17: 40 | G17: 5.08 | H17: 0.8 | I17: 22.16 | J17: 120.6 | K17: б/н
D18: хлеб черн. | E18: Хлеб ржаной | F18: 20 | G18: 1.66 | H18: 0.3 | I18: 9.6 | J18: 54.3 | K18: б/н
D19: сладкое | E19: Кондитерское изделие | F19: 40 | G19: 3 | H19: 3.92 | I19: 14.88 | J19: 83.4 | K19: б/н
D23: итого | F23: =SUM(F14:F22) -> 700 | G23: =SUM(G14:G22) -> 37.5 | H23: =SUM(H14:H22) -> 44.94 | I23: =SUM(I14:I22) -> 81.97 | J23: =SUM(J14:J22) -> 868.16
A24: =A6 -> 1 | B24: =B6 -> 1 | C24: Итого за день: | F24: =F13+F23 -> 1230 | G24: =G13+G23 -> 58.02 | H24: =H13+H23 -> 90.95 | I24: =I13+I23 -> 188.18 | J24: =J13+J23 -> 1600.21
A25: 1 | B25: 2 | C25: Завтрак | D25: гор.блюдо | E25: Тефтели мясные с соусом томатным | F25: 110 | G25: 10.8 | H25: 16.7 | I25: 13.4 | J25: 248 | K25: 206
D26: гор.блюдо | E26: Макаронные изделия отварные | F26: 150 | G26: 5.1 | H26: 9.15 | I26: 34.2 | J26: 244.5 | K26: 300
D27: гор.напиток | E27: Чай с сахаром | F27: 200 | G27: 0.2 | H27: 0 | I27: 15 | J27: 58 | K27: 400
D28: хлеб бел. | E28: Хлеб пшеничный | F28: 20 | G28: 2.54 | H28: 0.4 | I28: 11.08 | J28: 60.3 | K28: б/н
D29: хлеб черн. | E29: Хлеб ржаной | F29: 20 | G29: 1.66 | H29: 0.3 | I29: 9.6 | J29: 54.3 | K29: б/н
D32: итого | F32: 500 | G32: 20.3 | H32: 26.55 | I32: 83.28 | J32: 665.1
A33: =A25 -> 1 | B33: =B25 -> 2 | C33: Обед | D33: 1 блюдо | E33: Суп рассольник Ленинградский | F33: 230 | G33: 1.72 | H33: 4.26 | I33: 12.65 | J33: 115.48 | K33: 104
D34: 2 блюдо | E34: Бигус | F34: 230 | G34: 3.27 | H34: 10.69 | I34: 9.14 | J34: 231.15 | K34: 223
D35: напиток | E35: Компот из смеси сухофруктов | F35: 200 | G35: 0.22 | H35: 0.02 | I35: 22.21 | J35: 86.05 | K35: 402
D36: хлеб бел. | E36: Хлеб пшеничный | F36: 60 | G36: 7.62 | H36: 1.2 | I36: 33.24 | J36: 180.9 | K36: б/н
D37: хлеб черн. | E37: Хлеб ржаной | F37: 40 | G37: 3.32 | H37: 0.6 | I37: 19.2 | J37: 108.6 | K37: б/н
D42: итого | F42: =SUM(F33:F41) -> 760 | G42: =SUM(G33:G41) -> 16.15 | H42: =SUM(H33:H41) -> 16.77 | I42: =SUM(I33:I41) -> 96.44 | J42: =SUM(J33:J41) -> 722.18
A43: =A25 -> 1 | B43: =B25 -> 2 | C43: Итого за день: | F43: =F32+F42 -> 1260 | G43: =G32+G42 -> 36.45 | H43: =H32+H42 -> 43.32 | I43: =I32+I42 -> 179.72 | J43: =J32+J42 -> 1387.28
A44: 1 | B44: 3 | C44: Завтрак | D44: гор.блюдо | E44: Каша рисовая рассыпчатая | F44: 150 | G44: 6.6 | H44: 4.9 | I44: 37.1 | J44: 223 | K44: 306
D45: гор.блюдо | E45: Котлета рыбная "Лада" | F45: 90 | G45: 10.17 | H45: 4.86 | I45: 8.8 | J45: 118.62 | K45: 234
D46: гор.напиток | E46: Чай с сахаром | F46: 200 | G46: 1.4 | H46: 1.1 | I46: 11.3 | J46: 59 | K46: 410
D47: хлеб бел. | E47: Хлеб пшеничный | F47: 20 | G47: 2.54 | H47: 0.4 | I47: 11.08 | J47: 60.3 | K47: б/н
D48: хлеб черн. | E48: Хлеб ржаной | F48: 20 | G48: 1.66 | H48: 0.3 | I48: 9.6 | J48: 54.3 | K48: б/н
D49: фрукты | E49: Фрукт | F49: 100 | G49: 0.4 | H49: 0 | I49: 9.6 | J49: 40 | K49: б/н
D51: итого | F51: =SUM(F44:F50) -> 580 | G51: =SUM(G44:G50) -> 22.77 | H51: =SUM(H44:H50) -> 11.56 | I51: =SUM(I44:I50) -> 87.48 | J51: =SUM(J44:J50) -> 555.22
A52: =A44 -> 1 | B52: =B44 -> 3 | C52: Обед | D52: 1 блюдо | E52: Борщ из свежей капусты с картофелем | F52: 200 | G52: 1.22 | H52: 3.56 | I52: 8.17 | J52: 84.3 | K52: 102
D53: 2 блюдо | E53: Гуляш с соусом | F53: 90 | G53: 4.5 | H53: 7.3 | I53: 15.62 | J53: 148.5 | K53: 437
D54: гарнир | E54: Пюре картофельное | F54: 150 | G54: 3.08 | H54: 4.92 | I54: 20 | J54: 138.33 | K54: 305
D55: напиток | E55: Чай с сахаром | F55: 200 | G55: 0.2 | H55: 0 | I55: 15 | J55: 58 | K55: 400
D56: хлеб бел. | E56: Хлеб пшеничный | F56: 60 | G56: 7.62 | H56: 1.2 | I56: 33.24 | J56: 180.9 | K56: б/н
D57: хлеб черн. | E57: Хлеб ржаной | F57: 40 | G57: 3.32 | H57: 0.6 | I57: 19.2 | J57: 108.6 | K57: б/н
D61: итого | F61: =SUM(F52:F60) -> 740 | G61: =SUM(G52:G60) -> 19.94 | H61: =SUM(H52:H60) -> 17.58 | I61: =SUM(I52:I60) -> 111.23 | J61: =SUM(J52:J60) -> 718.63
A62: =A44 -> 1 | B62: =B44 -> 3 | C62: Итого за день: | F62: =F51+F61 -> 1320 | G62: =G51+G61 -> 42.71 | H62: =H51+H61 -> 29.14 | I62: =I51+I61 -> 198.71 | J62: =J51+J61 -> 1273.85
A63: 1 | B63: 4 | C63: Завтрак | D63: гор.блюдо | E63: Омлет натуральный с маслом | F63: 200 | G63: 20.52 | H63: 34.5 | I63: 3.89 | J63: 408.6 | K63: 200
D64: гор.напиток | E64: Чай с лимоном | F64: 200 | G64: 0.16 | H64: 0.01 | I64: 14.92 | J64: 61.56 | K64: 418
D65: хлеб бел. | E65: Хлеб пшеничный | F65: 40 | G65: 5.08 | H65: 0.8 | I65: 22.16 | J65: 120.6 | K65: б/н
D66: хлеб черн. | E66: Хлеб ржаной | F66: 20 | G66: 1.66 | H66: 0.3 | I66: 9.6 | J66: 54.3 | K66: б/н
D67: сладкое | E67: Кондитерское изделие | F67: 50 | G67: 10.2 | H67: 9.2 | I67: 0.6 | J67: 126 | K67: б/н
D70: итого | F70: =SUM(F63:F69) -> 510 | G70: =SUM(G63:G69) -> 37.62 | H70: =SUM(H63:H69) -> 44.81 | I70: =SUM(I63:I69) -> 51.17 | J70: =SUM(J63:J69) -> 771.06
A71: =A63 -> 1 | B71: =B63 -> 4 | C71: Обед | D71: закуска | E71: Салат из свеклы с сыром | F71: 60 | G71: 3.24 | H71: 8.52 | I71: 4.51 | J71: 80 | K71: 707
D72: 1 блюдо | E72: Суп картофельный с крупой | F72: 220 | G72: 2.1 | H72: 2.1 | I72: 15.5 | J72: 111.6 | K72: 103
D73: 2 блюдо | E73: Зразы "Верх-Исетские" | F73: 90 | G73: 19.94 | H73: 14.97 | I73: 5.99 | J73: 238.74 | K73: 217
D74: гарнир | E74: Капуста тушеная | F74: 150 | G74: 3 | H74: 3.91 | I74: 14.58 | J74: 100.77 | K74: 156
D75: напиток | E75: Компот из сухофруктов | F75: 200 | G75: 0.9 | H75: 0.05 | I75: 20.6 | J75: 89 | K75: 412
D76: хлеб бел. | E76: Хлеб пшеничный | F76: 20 | G76: 2.54 | H76: 0.4 | I76: 11.08 | J76: 60.3 | K76: б/н
D77: хлеб черн. | E77: Хлеб ржаной | F77: 20 | G77: 1.66 | H77: 0.3 | I77: 9.6 | J77: 54.3 | K77: б/н
D80: итого | F80: =SUM(F71:F79) -> 760 | G80: =SUM(G71:G79) -> 33.38 | H80: =SUM(H71:H79) -> 30.25 | I80: =SUM(I71:I79) -> 81.86 | J80: =SUM(J71:J79) -> 734.71
A81: =A63 -> 1 | B81: =B63 -> 4 | C81: Итого за день: | F81: =F70+F80 -> 1270 | G81: =G70+G80 -> 71 | H81: =H70+H80 -> 75.06 | I81: =I70+I80 -> 133.03 | J81: =J70+J80 -> 1505.77
A82: 1 | B82: 5 | C82: Завтрак | D82: гор.блюдо | E82: Жаркое по-домашнему | F82: 260 | G82: 23.11 | H82: 13.8 | I82: 23.51 | J82: 303.67 | K82: 227
D83: гор.напиток | E83: Чай с сахаром | F83: 200 | G83: 1.4 | H83: 1.1 | I83: 11.3 | J83: 59 | K83: 410
D84: хлеб бел. | E84: Хлеб пшеничный | F84: 20 | G84: 2.54 | H84: 0.4 | I84: 11.08 | J84: 60.3 | K84: б/н
D85: хлеб черн. | E85: Хлеб ржаной | F85: 20 | G85: 1.66 | H85: 0.3 | I85: 9.6 | J85: 54.3 | K85: б/н
D89: итого | F89: 500 | G89: 28.71 | H89: 15.6 | I89: 55.49 | J89: 477.27
A90: =A82 -> 1 | B90: =B82 -> 5 | C90: Обед | D90: закуска | E90: Салат из свеклы "Бурячек" | F90: 60 | G90: 0.63 | H90: 9.042 | I90: 3.462 | J90: 97.8 | K90: 709
D91: 1 блюдо | E91: Щи из свежей капусты со сметаной | F91: 220 | G91: 1.35 | H91: 4.34 | I91: 6.56 | J91: 91.28 | K91: 101
D92: 2 блюдо | E92: Котлеты, биточки, шницели | F92: 90 | G92: 9.18 | H92: 10.53 | I92: 7.38 | J92: 161.1 | K92: 221
D93: гарнир | E93: Макаронные изделия отварные | F93: 150 | G93: 5.1 | H93: 9.15 | I93: 34.2 | J93: 244.5 | K93: 300
D94: напиток | E94: Кисель витаминизированный из концентрата | F94: 200 | G94: 0.24 | H94: 0.144 | I94: 30.42 | J94: 116.86 | K94: 403
D95: хлеб бел. | E95: Хлеб пшеничный | F95: 20 | G95: 2.54 | H95: 0.4 | I95: 11.08 | J95: 60.3 | K95: б/н
D96: хлеб черн. | E96: Хлеб ржаной | F96: 20 | G96: 1.66 | H96: 0.3 | I96: 9.6 | J96: 54.3 | K96: б/н
D99: итого | F99: =SUM(F90:F98) -> 760 | G99: =SUM(G90:G98) -> 20.7 | H99: =SUM(H90:H98) -> 33.906 | I99: =SUM(I90:I98) -> 102.702 | J99: =SUM(J90:J98) -> 826.14
A100: =A82 -> 1 | B100: =B82 -> 5 | C100: Итого за день: | F100: =F89+F99 -> 1260 | G100: =G89+G99 -> 49.41 | H100: =H89+H99 -> 49.506 | I100: =I89+I99 -> 158.192 | J100: =J89+J99 -> 1303.41
A101: 2 | B101: 1 | C101: Завтрак | D101: гор.блюдо | E101: Каша пшенная молочная | F101: 250 | G101: 9.1 | H101: 11.1 | I101: 42.6 | J101: 307 | K101: 502
D102: гор.напиток | E102: Чай с сахаром | F102: 200 | G102: 1.4 | H102: 1.1 | I102: 11.3 | J102: 59 | K102: 410
D103: хлеб черн. | E103: Хлеб ржаной | F103: 20 | G103: 1.66 | H103: 0.3 | I103: 9.6 | J103: 54.3 | K103: б/н
D104: хлеб бел. | E104: Хлеб пшеничный | F104: 20 | G104: 2.54 | H104: 0.4 | I104: 11.08 | J104: 60.3 | K104: б/н
D105: кисломол. | E105: Кисломолочная пищевая продукция | F105: 125 | G105: 2.8 | H105: 2.4 | I105: 15 | J105: 92 | K105: б/н
D108: итого | F108: =SUM(F101:F107) -> 615 | G108: =SUM(G101:G107) -> 17.5 | H108: =SUM(H101:H107) -> 15.3 | I108: =SUM(I101:I107) -> 89.58 | J108: =SUM(J101:J107) -> 572.6
A109: =A101 -> 2 | B109: =B101 -> 1 | C109: Обед | D109: 1 блюдо | E109: Суп крестьянский с крупой | F109: 220 | G109: 2.41 | H109: 6.17 | I109: 12.37 | J109: 115.33 | K109: 105
D110: 2 блюдо | E110: Котлета "Детская" из мяса кур | F110: 90 | G110: 15.05 | H110: 8.77 | I110: 10.35 | J110: 180 | K110: 208
D111: гарнир | E111: Рис с овощами | F111: 150 | G111: 4.55 | H111: 6.95 | I111: 45.74 | J111: 264.6 | K111: 304
D112: напиток | E112: Компот из сухофруктов | F112: 200 | G112: 0.22 | H112: 0.02 | I112: 22.21 | J112: 86.05 | K112: 402
D113: хлеб бел. | E113: Хлеб пшеничный | F113: 40 | G113: 5.08 | H113: 0.8 | I113: 22.16 | J113: 120.6 | K113: б/н
D114: хлеб черн. | E114: Хлеб ржаной | F114: 20 | G114: 1.66 | H114: 0.3 | I114: 9.6 | J114: 54.3 | K114: б/н
D118: итого | F118: =SUM(F109:F117) -> 720 | G118: =SUM(G109:G117) -> 28.97 | H118: =SUM(H109:H117) -> 23.01 | I118: =SUM(I109:I117) -> 122.43 | J118: =SUM(J109:J117) -> 820.88
A119: =A101 -> 2 | B119: =B101 -> 1 | C119: Итого за день: | F119: =F108+F118 -> 1335 | G119: =G108+G118 -> 46.47 | H119: =H108+H118 -> 38.31 | I119: =I108+I118 -> 212.01 | J119: =J108+J118 -> 1393.48
A120: 2 | B120: 2 | C120: Завтрак | D120: гор.блюдо | E120: Макароны с сыром и сливочным маслом | F120: 230 | G120: 12.97 | H120: 14.86 | I120: 49.65 | J120: 385.67 | K120: 231
D121: гор.напиток | E121: Кофейный напиток с молоком | F121: 200 | G121: 3.31 | H121: 3.1 | I121: 26.53 | J121: 148.03 | K121: 419
D122: хлеб бел. | E122: Хлеб пшеничный | F122: 20 | G122: 2.54 | H122: 0.4 | I122: 11.08 | J122: 60.3 | K122: б/н
D123: хлеб черн. | E123: Хлеб ржаной | F123: 20 | G123: 1.66 | H123: 0.3 | I123: 9.6 | J123: 54.3 | K123: б/н
D124: сладкое | E124: Кондитерское изделие | F124: 50 | G124: 10.2 | H124: 9.2 | I124: 0.6 | J124: 126 | K124: б/н
D127: итого | F127: =SUM(F120:F126) -> 520 | G127: =SUM(G120:G126) -> 30.68 | H127: =SUM(H120:H126) -> 27.86 | I127: =SUM(I120:I126) -> 97.46 | J127: =SUM(J120:J126) -> 774.3
A128: =A120 -> 2 | B128: =B120 -> 2 | C128: Обед | D128: 1 блюдо | E128: Суп картофельный на мясном бульоне | F128: 220 | G128: 5.14 | H128: 3.97 | I128: 12.24 | J128: 107.22 | K128: 117
D129: 2 блюдо | E129: Котлета "Дружба" | F129: 90 | G129: 12.86 | H129: 15.93 | I129: 2.56 | J129: 204.36 | K129: 232
D130: гарнир | E130: Пюре картофельное | F130: 150 | G130: 3.08 | H130: 4.92 | I130: 20 | J130: 138.33 | K130: 305
D131: напиток | E131: Кисель витаминизированный из концентрата | F131: 200 | G131: 0.24 | H131: 0.144 | I131: 30.42 | J131: 116.86 | K131: 403
D132: хлеб бел. | E132: Хлеб пшеничный | F132: 20 | G132: 2.54 | H132: 0.4 | I132: 11.08 | J132: 60.3 | K132: б/н
D133: хлеб черн. | E133: Хлеб ржаной | F133: 20 | G133: 1.66 | H133: 0.3 | I133: 9.6 | J133: 54.3 | K133: б/н
D137: итого | F137: =SUM(F128:F136) -> 700 | G137: =SUM(G128:G136) -> 25.52 | H137: =SUM(H128:H136) -> 25.664 | I137: =SUM(I128:I136) -> 85.9 | J137: =SUM(J128:J136) -> 681.37
A138: =A120 -> 2 | B138: =B120 -> 2 | C138: Итого за день: | F138: =F127+F137 -> 1220 | G138: =G127+G137 -> 56.2 | H138: =H127+H137 -> 53.524 | I138: =I127+I137 -> 183.36 | J138: =J127+J137 -> 1455.67
A139: 2 | B139: 3 | C139: Завтрак | D139: гор.блюдо | E139: Суфле из куры с рисом | F139: 90 | G139: 26.64 | H139: 9.29 | I139: 3.11 | J139: 195.83 | K139: 233
D140: гор.блюдо | E140: Рис с овощами | F140: 150 | G140: 4.55 | H140: 6.95 | I140: 45.74 | J140: 264.6 | K140: 304
D141: гор.напиток | E141: Чай с лимоном | F141: 200 | G141: 0.16 | H141: 0.01 | I141: 14.92 | J141: 61.56 | K141: 418
D142: хлеб бел. | E142: Хлеб пшеничный | F142: 40 | G142: 5.08 | H142: 0.8 | I142: 22.16 | J142: 120.6 | K142: б/н
D143: хлеб черн. | E143: Хлеб ржаной | F143: 20 | G143: 1.66 | H143: 0.3 | I143: 9.6 | J143: 54.3 | K143: б/н
D146: итого | F146: =SUM(F139:F145) -> 500 | G146: =SUM(G139:G145) -> 38.09 | H146: =SUM(H139:H145) -> 17.35 | I146: =SUM(I139:I145) -> 95.53 | J146: =SUM(J139:J145) -> 696.89
A147: =A139 -> 2 | B147: =B139 -> 3 | C147: Обед | D147: закуска | E147: Салат из белокочанной капусты и моркови | F147: 60 | G147: 1.4 | H147: 4.3 | I147: 5.2 | J147: 64 | K147: 706
D148: 1 блюдо | E148: Суп картофельный с рыбными консервами | F148: 220 | G148: 5.99 | H148: 7.2 | I148: 16.7 | J148: 99 | K148: 108
D149: 2 блюдо | E149: Тефтели мясные с соусом томатным | F149: 110 | G149: 10.8 | H149: 16.7 | I149: 13.4 | J149: 248 | K149: 206
D150: гарнир | E150: Каша гречневая рассыпчатая | F150: 150 | G150: 8.7 | H150: 7.8 | I150: 42.6 | J150: 279 | K150: 301
D151: напиток | E151: Чай с сахаром | F151: 200 | G151: 0.27 | H151: 0.059 | I151: 15.26 | J151: 59.49 | K151: 415
D152: хлеб бел. | E152: Хлеб пшеничный | F152: 20 | G152: 2.54 | H152: 0.4 | I152: 11.08 | J152: 60.3 | K152: б/н
D153: хлеб черн. | E153: Хлеб ржаной | F153: 20 | G153: 1.66 | H153: 0.3 | I153: 9.6 | J153: 54.3 | K153: б/н
D156: итого | F156: =SUM(F147:F155) -> 780 | G156: =SUM(G147:G155) -> 31.36 | H156: =SUM(H147:H155) -> 36.759 | I156: =SUM(I147:I155) -> 113.84 | J156: =SUM(J147:J155) -> 864.09
A157: =A139 -> 2 | B157: =B139 -> 3 | C157: Итого за день: | F157: =F146+F156 -> 1280 | G157: =G146+G156 -> 69.45 | H157: =H146+H156 -> 54.109 | I157: =I146+I156 -> 209.37 | J157: =J146+J156 -> 1560.98
A158: 2 | B158: 4 | C158: Завтрак | D158: гор.блюдо | E158: Творожный пудинг яблочный (запеченный) + Соус молочный (сладкий) | F158: 240 | G158: 10.57 | H158: 18.46 | I158: 49.14 | J158: 442.14 | K158: 77/327
D159: гор.напиток | E159: Чай с сахаром | F159: 200 | G159: 0.2 | H159: 0 | I159: 15 | J159: 58 | K159: 400
D160: хлеб бел. | E160: Хлеб пшеничный | F160: 40 | G160: 5.08 | H160: 0.8 | I160: 22.16 | J160: 120.6 | K160: б/н
D161: хлеб черн. | E161: Хлеб ржаной | F161: 20 | G161: 1.66 | H161: 0.3 | I161: 9.6 | J161: 54.3 | K161: б/н
D165: итого | F165: =SUM(F158:F164) -> 500 | G165: =SUM(G158:G164) -> 17.51 | H165: =SUM(H158:H164) -> 19.56 | I165: =SUM(I158:I164) -> 95.9 | J165: =SUM(J158:J164) -> 675.04
A166: =A158 -> 2 | B166: =B158 -> 4 | C166: Обед | D166: закуска | E166: Салат из моркови с яблоками | F166: 60 | G166: 0.31 | H166: 1.24 | I166: 12.13 | J166: 60.95 | K166: 702
D167: 1 блюдо | E167: Рассольник ленинградский | F167: 200 | G167: 1.5 | H167: 3.71 | I167: 11 | J167: 100.42 | K167: 111
D168: 2 блюдо | E168: Котлета "Детская" из мяса кур | F168: 90 | G168: 15.05 | H168: 8.77 | I168: 10.35 | J168: 180 | K168: 208
D169: гарнир | E169: Гороховое пюре | F169: 150 | G169: 3.7 | H169: 5.9 | I169: 24 | J169: 166 | K169: 308
D170: напиток | E170: Компот из свежих плодов | F170: 200 | G170: 0.15 | H170: 0.11 | I170: 27.79 | J170: 112.5 | K170: 420
D171: хлеб бел. | E171: Хлеб пшеничный | F171: 20 | G171: 2.54 | H171: 0.4 | I171: 11.08 | J171: 60.3 | K171: б/н
D172: хлеб черн. | E172: Хлеб ржаной | F172: 20 | G172: 1.66 | H172: 0.3 | I172: 9.6 | J172: 54.3 | K172: б/н
D175: итого | F175: =SUM(F166:F174) -> 740 | G175: =SUM(G166:G174) -> 24.91 | H175: =SUM(H166:H174) -> 20.43 | I175: =SUM(I166:I174) -> 105.95 | J175: =SUM(J166:J174) -> 734.47
A176: =A158 -> 2 | B176: =B158 -> 4 | C176: Итого за день: | F176: =F165+F175 -> 1240 | G176: =G165+G175 -> 42.42 | H176: =H165+H175 -> 39.99 | I176: =I165+I175 -> 201.85 | J176: =J165+J175 -> 1409.51
A177: 2 | B177: 5 | C177: Завтрак | D177: гор.блюдо | E177: Плов из мяса кур | F177: 230 | G177: 19.16 | H177: 29.13 | I177: 40.2 | J177: 449.88 | K177: 235
D178: гор.напиток | E178: Чай с сахаром | F178: 200 | G178: 1.4 | H178: 1.1 | I178: 11.3 | J178: 59 | K178: 410
D179: хлеб черн. | E179: Хлеб ржаной | F179: 40 | G179: 3.32 | H179: 0.6 | I179: 19.2 | J179: 108.6 | K179: б/н
D180: закуска | E180: Бутерброд с маслом | F180: 60 | G180: 7.19 | H180: 13.58 | I180: 83.97 | J180: 113.1 | K180: 805
D184: итого | F184: =SUM(F177:F183) -> 530 | G184: =SUM(G177:G183) -> 31.07 | H184: =SUM(H177:H183) -> 44.41 | I184: =SUM(I177:I183) -> 154.67 | J184: =SUM(J177:J183) -> 730.58
A185: =A177 -> 2 | B185: =B177 -> 5 | C185: Обед | D185: 1 блюдо | E185: Щи из свежей капусты со сметаной | F185: 220 | G185: 1.22 | H185: 4.34 | I185: 6.56 | J185: 91.28 | K185: 101
D186: 2 блюдо | E186: Макароны с сыром и сливочным маслом | F186: 230 | G186: 12.97 | H186: 14.86 | I186: 49.65 | J186: 385.67 | K186: 231
D187: напиток | E187: Компот из изюма | F187: 200 | G187: 0.01 | H187: 0 | I187: 24.2 | J187: 93 | K187: 401
D188: хлеб бел. | E188: Хлеб пшеничный | F188: 20 | G188: 2.54 | H188: 0.4 | I188: 11.08 | J188: 60.3 | K188: б/н
D189: хлеб черн. | E189: Хлеб ржаной | F189: 20 | G189: 1.66 | H189: 0.3 | I189: 9.6 | J189: 54.3 | K189: б/н
D190: напиток | E190: Сок | F190: 200 | G190: 0 | H190: 0 | I190: 22.4 | J190: 90 | K190: б/н
D194: итого | F194: =SUM(F185:F193) -> 890 | G194: =SUM(G185:G193) -> 18.4 | H194: =SUM(H185:H193) -> 19.9 | I194: =SUM(I185:I193) -> 123.49 | J194: =SUM(J185:J193) -> 774.55
A195: =A177 -> 2 | B195: =B177 -> 5 | C195: Итого за день: | F195: =F184+F194 -> 1420 | G195: =G184+G194 -> 49.47 | H195: =H184+H194 -> 64.31 | I195: =I184+I194 -> 278.16 | J195: =J184+J194 -> 1505.13
A196: 3 | B196: 1 | C196: Завтрак | D196: гор.блюдо | E196: Каша "Дружба" | F196: 250 | G196: 7.17 | H196: 1036 | I196: 39.94 | J196: 282.6 | K196: 501
D197: гор.напиток | E197: Какао с молоком | F197: 200 | G197: 3.78 | H197: 25.77 | I197: 25.77 | J197: 149.32 | K197: 405
D198: хлеб черн. | E198: Хлеб пшеничный | F198: 40 | G198: 5.08 | H198: 0.8 | I198: 22.16 | J198: 120.6 | K198: б/н
D199: хлеб черн. | E199: Хлеб ржаной | F199: 20 | G199: 1.66 | H199: 0.3 | I199: 9.6 | J199: 54.3 | K199: б/н
D200: напиток | E200: Сок | F200: 200 | G200: 0 | H200: 0 | I200: 22.4 | J200: 90 | K200: б/н
D203: итого | F203: =SUM(F196:F202) -> 710 | G203: =SUM(G196:G202) -> 17.69 | H203: =SUM(H196:H202) -> 1062.87 | I203: =SUM(I196:I202) -> 119.87 | J203: =SUM(J196:J202) -> 696.82
A204: =A196 -> 3 | B204: =B196 -> 1 | C204: Обед | D204: 1 блюдо | E204: Суп-лапша домашняя | F204: 200 | G204: 2.07 | H204: 4.3 | I204: 10.3 | J204: 88.89 | K204: 109
D205: 2 блюдо | E205: Биточек рыбный | F205: 90 | G205: 11.45 | H205: 9.17 | I205: 8.72 | J205: 163.7 | K205: 237
D206: гарнир | E206: Пюре картофельное | F206: 150 | G206: 3.7 | H206: 5.9 | I206: 24 | J206: 166 | K206: 309
D207: напиток | E207: Напиток Каркаде | F207: 200 | G207: 0.1 | H207: 0 | I207: 24.2 | J207: 93 | K207: 409
D208: хлеб бел. | E208: Хлеб пшеничный | F208: 20 | G208: 2.54 | H208: 0.4 | I208: 11.08 | J208: 60.3 | K208: б/н
D209: хлеб черн. | E209: Хлеб ржаной | F209: 40 | G209: 3.32 | H209: 0.6 | I209: 19.2 | J209: 108.6 | K209: б/н
D210: кисломол. | E210: Кисломолоная пищевая продукция | F210: 125 | G210: 2.8 | H210: 2.4 | I210: 15 | J210: 92 | K210: б/н
D213: итого | F213: =SUM(F204:F212) -> 825 | G213: =SUM(G204:G212) -> 25.98 | H213: =SUM(H204:H212) -> 22.77 | I213: =SUM(I204:I212) -> 112.5 | J213: =SUM(J204:J212) -> 772.49
A214: =A196 -> 3 | B214: =B196 -> 1 | C214: Итого за день: | F214: =F203+F213 -> 1535 | G214: =G203+G213 -> 43.67 | H214: =H203+H213 -> 1085.64 | I214: =I203+I213 -> 232.37 | J214: =J203+J213 -> 1469.31
A215: 3 | B215: 2 | C215: Завтрак | D215: гор.блюдо | E215: Макаронные изделия отварные | F215: 150 | G215: 5.1 | H215: 9.15 | I215: 34.2 | J215: 244.5 | K215: 300
D216: гор.блюдо | E216: Тефтели мясные с соусом томатным | F216: 110 | G216: 10.8 | H216: 16.7 | I216: 13.4 | J216: 248 | K216: 206
D217: гор.напиток | E217: Чай с сахаром | F217: 200 | G217: 0.2 | H217: 0 | I217: 15 | J217: 58 | K217: 400
D218: хлеб бел. | E218: Хлеб пшеничный | F218: 20 | G218: 2.54 | H218: 0.4 | I218: 11.08 | J218: 60.3 | K218: б/н
D219: хлеб черн. | E219: Хлеб ржаной | F219: 20 | G219: 1.66 | H219: 0.3 | I219: 9.6 | J219: 54.3 | K219: б/н
D222: итого | F222: =SUM(F215:F221) -> 500 | G222: =SUM(G215:G221) -> 20.3 | H222: =SUM(H215:H221) -> 26.55 | I222: =SUM(I215:I221) -> 83.28 | J222: =SUM(J215:J221) -> 665.1
A223: =A215 -> 3 | B223: =B215 -> 2 | C223: Обед | D223: 1 блюдо | E223: Суп картофельный с фрикадельками | F223: 225 | G223: 5.68 | H223: 4.39 | I223: 15.53 | J223: 127.44 | K223: 114
D224: 2 блюдо | E224: Творожный пудинг яблочный (запеченный) + Соус молочный (сладкий) | F224: 240 | G224: 10.57 | H224: 18.46 | I224: 49.14 | J224: 442.14 | K224: 77/327
D225: напиток | E225: Компот из сухофруктов | F225: 200 | G225: 0.22 | H225: 0.02 | I225: 22.21 | J225: 86.05 | K225: 402
D226: хлеб бел. | E226: Хлеб пшеничный | F226: 20 | G226: 2.54 | H226: 0.4 | I226: 11.08 | J226: 60.3 | K226: б/н
D227: хлеб черн. | E227: Хлеб ржаной | F227: 20 | G227: 1.66 | H227: 0.3 | I227: 9.6 | J227: 54.3 | K227: б/н
D232: итого | F232: =SUM(F223:F231) -> 705 | G232: =SUM(G223:G231) -> 20.67 | H232: =SUM(H223:H231) -> 23.57 | I232: =SUM(I223:I231) -> 107.56 | J232: =SUM(J223:J231) -> 770.23
A233: =A215 -> 3 | B233: =B215 -> 2 | C233: Итого за день: | F233: =F222+F232 -> 1205 | G233: =G222+G232 -> 40.97 | H233: =H222+H232 -> 50.12 | I233: =I222+I232 -> 190.84 | J233: =J222+J232 -> 1435.33
A234: 3 | B234: 3 | C234: Завтрак | D234: гор.блюдо | E234: Жаркое по-домашнему | F234: 260 | G234: 21.41 | H234: 11.8 | I234: 23.11 | J234: 303.67 | K234: 227
D235: гор.напиток | E235: Чай с сахаром | F235: 200 | G235: 1.4 | H235: 1.1 | I235: 11.3 | J235: 59 | K235: 410
D236: хлеб бел. | E236: Хлеб пшеничный | F236: 20 | G236: 2.54 | H236: 0.4 | I236: 11.08 | J236: 60.3 | K236: б/н
D237: хлеб черн. | E237: Хлеб ржаной | F237: 20 | G237: 1.66 | H237: 0.3 | I237: 9.6 | J237: 54.3 | K237: б/н
D241: итого | F241: =SUM(F234:F240) -> 500 | G241: =SUM(G234:G240) -> 27.01 | H241: =SUM(H234:H240) -> 13.6 | I241: =SUM(I234:I240) -> 55.09 | J241: =SUM(J234:J240) -> 477.27
A242: =A234 -> 3 | B242: =B234 -> 3 | C242: Обед | D242: закуска | E242: Винегрет овощной | F242: 60 | G242: 0.8 | H242: 1.4 | I242: 4.3 | J242: 33 | K242: 700
D243: 1 блюдо | E243: Борщ из свежей капусты со сметаной | F243: 200 | G243: 1.22 | H243: 3.59 | I243: 8.24 | J243: 88.07 | K243: 110
D244: 2 блюдо | E244: Гуляш с соусом | F244: 90 | G244: 4.5 | H244: 7.3 | I244: 15.62 | J244: 148.5 | K244: 437
D245: гарнир | E245: Каша гречневая рассыпчатая | F245: 150 | G245: 8.7 | H245: 7.8 | I245: 42.6 | J245: 279 | K245: 301
D246: напиток | E246: Кофейный напиток с молоком | F246: 200 | G246: 3.31 | H246: 3.1 | I246: 26.53 | J246: 148.03 | K246: 419
D247: хлеб бел. | E247: Хлеб пшеничный | F247: 20 | G247: 2.54 | H247: 0.4 | I247: 11.08 | J247: 60.3 | K247: б/н
D248: хлеб черн. | E248: Хлеб ржаной | F248: 20 | G248: 1.66 | H248: 0.3 | I248: 9.6 | J248: 54.3 | K248: б/н
D251: итого | F251: =SUM(F242:F250) -> 740 | G251: =SUM(G242:G250) -> 22.73 | H251: =SUM(H242:H250) -> 23.89 | I251: =SUM(I242:I250) -> 117.97 | J251: =SUM(J242:J250) -> 811.2
A252: =A234 -> 3 | B252: =B234 -> 3 | C252: Итого за день: | F252: =F241+F251 -> 1240 | G252: =G241+G251 -> 49.74 | H252: =H241+H251 -> 37.49 | I252: =I241+I251 -> 173.06 | J252: =J241+J251 -> 1288.47
A253: 3 | B253: 4 | C253: Завтрак | D253: гор.блюдо | E253: Омлет натуральный с маслом | F253: 200 | G253: 20.52 | H253: 34.24 | I253: 3.89 | J253: 408.6 | K253: 200
D254: гор.напиток | E254: Чай с сахаром | F254: 200 | G254: 0.2 | H254: 0 | I254: 15 | J254: 58 | K254: 400
D255: хлеб черн. | E255: Хлеб ржаной | F255: 40 | G255: 3.32 | H255: 0.6 | I255: 19.2 | J255: 108.6 | K255: б/н
D256: закуска | E256: Бутерброт с маслом и сыром | F256: 60 | G256: 7.88 | H256: 9.94 | I256: 20.74 | J256: 207.43 | K256: 800
D260: итого | F260: =SUM(F253:F259) -> 500 | G260: =SUM(G253:G259) -> 31.92 | H260: =SUM(H253:H259) -> 44.78 | I260: =SUM(I253:I259) -> 58.83 | J260: =SUM(J253:J259) -> 782.63
A261: =A253 -> 3 | B261: =B253 -> 4 | C261: Обед | D261: закуска | E261: Салат из белокочанной капусты | F261: 60 | G261: 1.3 | H261: 2.7 | I261: 6.2 | J261: 52 | K261: 701
D262: 1 блюдо | E262: Суп картофельный с крупой | F262: 220 | G262: 2.1 | H262: 2.1 | I262: 15.5 | J262: 111.6 | K262: 103
D263: 2 блюдо | E263: Зразы "Верх-Исетские" с соусом сменанным | F263: 120 | G263: 26.59 | H263: 19.97 | I263: 8 | J263: 318.33 | K263: 217/600
D264: гарнир | E264: Капуста тушеная свежая | F264: 150 | G264: 2.85 | H264: 9.3 | I264: 7.95 | J264: 201 | K264: 303
D265: напиток | E265: Компот из сухофруктов | F265: 200 | G265: 0.9 | H265: 0.05 | I265: 20.6 | J265: 89 | K265: 412
D266: хлеб бел. | E266: Хлеб пшеничный | F266: 20 | G266: 2.54 | H266: 0.4 | I266: 11.08 | J266: 60.3 | K266: б/н
D267: хлеб черн. | E267: Хлеб ржаной | F267: 20 | G267: 1.66 | H267: 0.3 | I267: 9.6 | J267: 54.3 | K267: б/н
D270: итого | F270: =SUM(F261:F269) -> 790 | G270: =SUM(G261:G269) -> 37.94 | H270: =SUM(H261:H269) -> 34.82 | I270: =SUM(I261:I269) -> 78.93 | J270: =SUM(J261:J269) -> 886.53
... 87 more rows
